[Event "*** Titled Tuesday Blitz"]
[Site "Chess.com"]
[Date "2019.09.03"]
[Round "2"]
[White "GMJimKnopf"]
[Black "SirMittensofMittensville"]
[Result "0-1"]
[WhiteElo "2724"]
[BlackElo "2535"]
[TimeControl "180+2"]
[EndTime "15:23:38 PDT"]
[Termination "SirMittensofMittensville won on time"]

1. e4 {[%clk 0:03:01.8]} 1... e5 {[%clk 0:03:00.9]} 2. Nf3 {[%clk 0:03:02.6]}
2... Nc6 {[%clk 0:03:02.4]} 3. Bc4 {[%clk 0:03:03.9]} 3... Bc5 {[%clk
0:03:03.2]} 4. c3 {[%clk 0:03:05.2]} 4... Nf6 {[%clk 0:03:04.8]} 5. d3 {[%clk
0:03:06.8]} 5... O-O {[%clk 0:03:06.3]} 6. Bb3 {[%clk 0:03:06.5]} 6... d5 {[%clk
0:03:07.5]} 7. Qe2 {[%clk 0:03:05.9]} 7... h6 {[%clk 0:03:07.2]} 8. h3 {[%clk
0:03:05.7]} 8... Re8 {[%clk 0:03:08.7]} 9. Nbd2 {[%clk 0:03:06.7]} 9... a5
{[%clk 0:03:08]} 10. Bc2 {[%clk 0:03:07.7]} 10... b5 {[%clk 0:02:59.8]} 11. O-O
{[%clk 0:02:44.8]} 11... Ba6 {[%clk 0:02:51.2]} 12. Re1 {[%clk 0:02:43]} 12...
b4 {[%clk 0:02:46.9]} 13. exd5 {[%clk 0:02:41]} 13... Nxd5 {[%clk 0:02:43.3]}
14. Ba4 {[%clk 0:02:30.7]} 14... Nf4 {[%clk 0:02:35.7]} 15. Qe4 {[%clk
0:02:31.8]} 15... Nxd3 {[%clk 0:02:35.5]} 16. Qxc6 {[%clk 0:02:25.6]} 16...
Bxf2+ {[%clk 0:02:12.3]} 17. Kh2 {[%clk 0:02:09.3]} 17... Re6 {[%clk 0:02:12.4]}
18. Qd7 {[%clk 0:02:05.5]} 18... Nxe1 {[%clk 0:02:07.5]} 19. Nxe1 {[%clk
0:01:37.4]} 19... Bxe1 {[%clk 0:02:08.6]} 20. Nf3 {[%clk 0:01:38.9]} 20... Bf2
{[%clk 0:02:01.5]} 21. cxb4 {[%clk 0:01:35]} 21... axb4 {[%clk 0:01:58.6]} 22.
Qd2 {[%clk 0:01:10.2]} 22... Qxd2 {[%clk 0:01:48.1]} 23. Bxd2 {[%clk 0:01:12.1]}
23... Bc5 {[%clk 0:01:43.4]} 24. Bb3 {[%clk 0:01:12]} 24... Re7 {[%clk 0:01:44]}
25. Rc1 {[%clk 0:00:49.3]} 25... Bd6 {[%clk 0:01:44]} 26. Kg1 {[%clk 0:00:44.1]}
26... Bb7 {[%clk 0:01:45.4]} 27. Nh4 {[%clk 0:00:44.7]} 27... Be4 {[%clk
0:01:36.6]} 28. Rc4 {[%clk 0:00:40.4]} 28... Bd5 {[%clk 0:01:34.7]} 29. Rg4
{[%clk 0:00:41.3]} 29... Bxb3 {[%clk 0:01:31.4]} 30. axb3 {[%clk 0:00:40.7]}
30... Ra1+ {[%clk 0:01:11.6]} 31. Kf2 {[%clk 0:00:39.6]} 31... Re6 {[%clk
0:01:09.1]} 32. Ke2 {[%clk 0:00:33.4]} 32... Kh7 {[%clk 0:01:04.6]} 33. Kd3
{[%clk 0:00:24.4]} 33... c5 {[%clk 0:00:58.3]} 34. Nf5 {[%clk 0:00:21.6]} 34...
Bf8 {[%clk 0:00:50.7]} 35. Ne3 {[%clk 0:00:22]} 35... g6 {[%clk 0:00:48.4]} 36.
Nd5 {[%clk 0:00:18.4]} 36... f5 {[%clk 0:00:47.8]} 37. Rg3 {[%clk 0:00:18.1]}
37... Rd6 {[%clk 0:00:35.5]} 38. Kc4 {[%clk 0:00:19.2]} 38... Rd1 {[%clk
0:00:36.6]} 39. Rd3 {[%clk 0:00:15]} 39... e4 {[%clk 0:00:37.9]} 40. Nf6+ {[%clk
0:00:12.5]} 40... Rxf6 {[%clk 0:00:37.9]} 41. Rd7+ {[%clk 0:00:14.4]} 41... Kg8
{[%clk 0:00:36.8]} 0-1

[Event "*** Titled Tuesday Blitz"]
[Site "Chess.com"]
[Date "2019.09.03"]
[Round "2"]
[White "ferdipy"]
[Black "juniortay"]
[Result "0-1"]
[WhiteElo "2156"]
[BlackElo "2429"]
[TimeControl "180+2"]
[EndTime "15:23:38 PDT"]
[Termination "juniortay won by resignation"]

1. d4 {[%clk 0:03:01.9]} 1... Nf6 {[%clk 0:03:00.4]} 2. c4 {[%clk 0:03:02.2]}
2... g6 {[%clk 0:02:59.3]} 3. Nc3 {[%clk 0:03:02.1]} 3... Bg7 {[%clk 0:03:00.7]}
4. e4 {[%clk 0:03:00.5]} 4... d6 {[%clk 0:03:02.6]} 5. Be2 {[%clk 0:03:00.6]}
5... O-O {[%clk 0:03:04.5]} 6. Be3 {[%clk 0:03:01.1]} 6... c5 {[%clk 0:03:02.2]}
7. dxc5 {[%clk 0:02:53.3]} 7... Qa5 {[%clk 0:03:02.3]} 8. f3 {[%clk 0:02:12.9]}
8... dxc5 {[%clk 0:03:01.4]} 9. Qd2 {[%clk 0:02:08.3]} 9... Nc6 {[%clk
0:02:53.8]} 10. g4 {[%clk 0:01:49]} 10... Rd8 {[%clk 0:02:31.1]} 11. Nd5 {[%clk
0:01:49]} 11... Qxd2+ {[%clk 0:02:29.3]} 12. Bxd2 {[%clk 0:01:48.1]} 12... e6
{[%clk 0:02:22.9]} 13. Nxf6+ {[%clk 0:01:38.2]} 13... Bxf6 {[%clk 0:02:22.2]}
14. O-O-O {[%clk 0:01:39.7]} 14... b6 {[%clk 0:01:53.5]} 15. f4 {[%clk
0:01:25.5]} 15... Bb7 {[%clk 0:01:17.7]} 16. Bf3 {[%clk 0:01:16.1]} 16... Nd4
{[%clk 0:01:15.1]} 17. Bg2 {[%clk 0:01:17.1]} 17... e5 {[%clk 0:01:07.4]} 18.
Nh3 {[%clk 0:00:45.8]} 18... exf4 {[%clk 0:00:53.3]} 19. Nxf4 {[%clk 0:00:45.3]}
19... Be5 {[%clk 0:00:50.1]} 20. Nd5 {[%clk 0:00:42.8]} 20... Kg7 {[%clk
0:00:48.5]} 21. h4 {[%clk 0:00:36.8]} 21... h6 {[%clk 0:00:47.7]} 22. Rhf1
{[%clk 0:00:29.9]} 22... Rac8 {[%clk 0:00:45.8]} 23. Bxh6+ {[%clk 0:00:17.7]}
23... Kxh6 {[%clk 0:00:42.7]} 24. Rxf7 {[%clk 0:00:19.2]} 24... Bxd5 {[%clk
0:00:35.9]} 25. exd5 {[%clk 0:00:12.5]} 25... Bg7 {[%clk 0:00:26.7]} 26. Rdf1
{[%clk 0:00:07.4]} 26... Rf8 {[%clk 0:00:26]} 27. Be4 {[%clk 0:00:06.6]} 27...
Rxf7 {[%clk 0:00:21.5]} 28. Rxf7 {[%clk 0:00:08.5]} 28... Rf8 {[%clk 0:00:22.9]}
29. Rxa7 {[%clk 0:00:09.7]} 29... Rf1+ {[%clk 0:00:17]} 30. Kd2 {[%clk
0:00:10.5]} 30... Rf2+ {[%clk 0:00:18.9]} 31. Kd3 {[%clk 0:00:10.5]} 31... Be5
{[%clk 0:00:18.4]} 32. Re7 {[%clk 0:00:10.6]} 32... Bf4 {[%clk 0:00:18]} 33. Kc3
{[%clk 0:00:09.2]} 33... Bd2+ {[%clk 0:00:18.7]} 34. Kd3 {[%clk 0:00:09.9]}
34... Bb4 {[%clk 0:00:19.3]} 35. d6 {[%clk 0:00:10.7]} 35... Rd2+ {[%clk
0:00:20.3]} 36. Ke3 {[%clk 0:00:12.2]} 36... Re2+ {[%clk 0:00:20.8]} 37. Kd3
{[%clk 0:00:12.1]} 37... Rd2+ {[%clk 0:00:18.9]} 38. Ke3 {[%clk 0:00:13.3]}
38... Re2+ {[%clk 0:00:18.3]} 39. Kf4 {[%clk 0:00:11.6]} 39... Bd2+ {[%clk
0:00:18.3]} 40. Ke5 {[%clk 0:00:12.9]} 40... Nc6+ {[%clk 0:00:18.4]} 41. Ke6
{[%clk 0:00:10.6]} 41... Nxe7 {[%clk 0:00:20.3]} 42. Kxe7 {[%clk 0:00:09.6]}
42... Rxe4+ {[%clk 0:00:21.4]} 0-1

[Event "*** Titled Tuesday Blitz"]
[Site "Chess.com"]
[Date "2019.09.03"]
[Round "2"]
[White "Opening_Prep"]
[Black "Last7Samurai"]
[Result "0-1"]
[WhiteElo "2432"]
[BlackElo "2777"]
[TimeControl "180+2"]
[EndTime "15:23:42 PDT"]
[Termination "Last7Samurai won by resignation"]

1. d4 {[%clk 0:03:01.9]} 1... d5 {[%clk 0:02:57.8]} 2. Bf4 {[%clk 0:03:00.9]}
2... c5 {[%clk 0:02:53.9]} 3. e3 {[%clk 0:03:00.6]} 3... Nc6 {[%clk 0:02:54.4]}
4. Nc3 {[%clk 0:02:55.1]} 4... a6 {[%clk 0:02:51.4]} 5. dxc5 {[%clk 0:02:51.7]}
5... e5 {[%clk 0:02:50.3]} 6. Bg3 {[%clk 0:02:51.8]} 6... Be6 {[%clk 0:02:49]}
7. Na4 {[%clk 0:02:50.8]} 7... Bxc5 {[%clk 0:02:44.7]} 8. Nxc5 {[%clk
0:02:51.2]} 8... Qa5+ {[%clk 0:02:46.3]} 9. c3 {[%clk 0:02:52.5]} 9... Qxc5
{[%clk 0:02:47.7]} 10. Nf3 {[%clk 0:02:54]} 10... f6 {[%clk 0:02:47.2]} 11. Be2
{[%clk 0:02:54.7]} 11... Nge7 {[%clk 0:02:48.1]} 12. h3 {[%clk 0:02:49.4]} 12...
O-O {[%clk 0:02:46.3]} 13. O-O {[%clk 0:02:46.9]} 13... Nf5 {[%clk 0:02:46.8]}
14. Bh2 {[%clk 0:02:47.6]} 14... Rad8 {[%clk 0:02:46.9]} 15. Rc1 {[%clk
0:02:43.6]} 15... Qe7 {[%clk 0:02:43.7]} 16. Qa4 {[%clk 0:02:31.5]} 16... Nd6
{[%clk 0:02:41.8]} 17. Rfd1 {[%clk 0:02:23.5]} 17... Ne4 {[%clk 0:02:42]} 18. a3
{[%clk 0:02:09.7]} 18... Kh8 {[%clk 0:02:39.1]} 19. b4 {[%clk 0:01:45.6]} 19...
Rc8 {[%clk 0:02:33.8]} 20. Nd2 {[%clk 0:01:39.5]} 20... Nd6 {[%clk 0:01:56.6]}
21. Qc2 {[%clk 0:01:12.5]} 21... Bf5 {[%clk 0:01:48]} 22. Qa2 {[%clk 0:01:08.8]}
22... Be6 {[%clk 0:01:47.7]} 23. Qb1 {[%clk 0:00:58.9]} 23... Rfd8 {[%clk
0:01:42.2]} 24. e4 {[%clk 0:00:51.7]} 24... d4 {[%clk 0:01:37.3]} 25. c4 {[%clk
0:00:53]} 25... b5 {[%clk 0:01:28.6]} 26. c5 {[%clk 0:00:44.3]} 26... Ne8 {[%clk
0:01:28.4]} 27. Nf3 {[%clk 0:00:38]} 27... Nc7 {[%clk 0:01:27.3]} 28. Ne1 {[%clk
0:00:38.2]} 28... a5 {[%clk 0:01:27.3]} 29. Nd3 {[%clk 0:00:27.4]} 29... Bc4
{[%clk 0:01:27.7]} 30. Bg4 {[%clk 0:00:23.6]} 30... Rb8 {[%clk 0:01:24.9]} 31.
f4 {[%clk 0:00:23.1]} 31... Ra8 {[%clk 0:01:22.5]} 32. fxe5 {[%clk 0:00:13]}
32... fxe5 {[%clk 0:01:21.2]} 33. Bg3 {[%clk 0:00:13.7]} 33... axb4 {[%clk
0:01:21.5]} 34. Nxb4 {[%clk 0:00:12.7]} 34... Nxb4 {[%clk 0:01:10.9]} 35. axb4
{[%clk 0:00:14.6]} 35... Be6 {[%clk 0:01:06.2]} 36. Bxe5 {[%clk 0:00:07.6]}
36... Ba2 {[%clk 0:01:07]} 37. Bd6 {[%clk 0:00:06.7]} 37... Qg5 {[%clk
0:00:45.3]} 38. Qb2 {[%clk 0:00:07.9]} 38... Ne6 {[%clk 0:00:46.7]} 39. e5
{[%clk 0:00:08.4]} 39... Nf4 {[%clk 0:00:46.6]} 40. Qxd4 {[%clk 0:00:08.4]}
40... Bd5 {[%clk 0:00:43]} 41. g3 {[%clk 0:00:07]} 41... Nxh3+ {[%clk
0:00:39.6]} 42. Bxh3 {[%clk 0:00:07.3]} 42... Qxg3+ {[%clk 0:00:41.5]} 43. Kf1
{[%clk 0:00:07.8]} 43... Qxh3+ {[%clk 0:00:42.8]} 44. Ke1 {[%clk 0:00:09.2]}
44... Qh1+ {[%clk 0:00:41.4]} 45. Kd2 {[%clk 0:00:10.1]} 45... Qg2+ {[%clk
0:00:40]} 46. Ke1 {[%clk 0:00:09.6]} 46... Ra2 {[%clk 0:00:39.7]} 47. Rd2 {[%clk
0:00:10.4]} 47... Qh1+ {[%clk 0:00:40]} 48. Ke2 {[%clk 0:00:11.8]} 48... Qxc1
{[%clk 0:00:37.9]} 49. Rxa2 {[%clk 0:00:12.6]} 49... Bxa2 {[%clk 0:00:39.8]} 50.
e6 {[%clk 0:00:13.3]} 50... Bc4+ {[%clk 0:00:39.8]} 0-1

[Event "*** Titled Tuesday Blitz"]
[Site "Chess.com"]
[Date "2019.09.03"]
[Round "2"]
[White "promen1999"]
[Black "STARMATEcc"]
[Result "1-0"]
[WhiteElo "2738"]
[BlackElo "2518"]
[TimeControl "180+2"]
[EndTime "15:23:49 PDT"]
[Termination "promen1999 won by checkmate"]

1. d4 {[%clk 0:03:01.9]} 1... Nf6 {[%clk 0:03:00.5]} 2. c4 {[%clk 0:03:02.9]}
2... e6 {[%clk 0:03:01.4]} 3. Nf3 {[%clk 0:03:04.1]} 3... Bb4+ {[%clk 0:03:01]}
4. Bd2 {[%clk 0:03:05.1]} 4... Be7 {[%clk 0:03:02.1]} 5. Nc3 {[%clk 0:03:05.6]}
5... d5 {[%clk 0:03:03.3]} 6. Bg5 {[%clk 0:03:04.4]} 6... O-O {[%clk 0:03:03.7]}
7. e3 {[%clk 0:03:05.1]} 7... c6 {[%clk 0:03:02.1]} 8. Qc2 {[%clk 0:03:04.3]}
8... Nbd7 {[%clk 0:03:00.6]} 9. a3 {[%clk 0:03:03.9]} 9... b6 {[%clk 0:03:01.5]}
10. cxd5 {[%clk 0:03:02.2]} 10... cxd5 {[%clk 0:03:02.5]} 11. Bd3 {[%clk
0:03:02.6]} 11... Bb7 {[%clk 0:03:02.3]} 12. O-O-O {[%clk 0:03:03.3]} 12... a6
{[%clk 0:03:00]} 13. Ne5 {[%clk 0:02:58.1]} 13... h6 {[%clk 0:02:58.5]} 14. Bxf6
{[%clk 0:02:47.4]} 14... Nxf6 {[%clk 0:02:39.2]} 15. f4 {[%clk 0:02:48]} 15...
b5 {[%clk 0:02:39.7]} 16. Kb1 {[%clk 0:02:45.7]} 16... Rc8 {[%clk 0:02:40.5]}
17. Qb3 {[%clk 0:02:30.9]} 17... Qb6 {[%clk 0:01:54.4]} 18. g4 {[%clk
0:02:28.7]} 18... Rc7 {[%clk 0:01:52.1]} 19. g5 {[%clk 0:02:22]} 19... hxg5
{[%clk 0:01:48.6]} 20. fxg5 {[%clk 0:02:23.9]} 20... Ne4 {[%clk 0:01:49.4]} 21.
Bxe4 {[%clk 0:02:04]} 21... dxe4 {[%clk 0:01:49.9]} 22. g6 {[%clk 0:01:55.5]}
22... f6 {[%clk 0:01:36.7]} 23. Nf7 {[%clk 0:01:45.3]} 23... Rfc8 {[%clk
0:01:34.3]} 24. d5 {[%clk 0:00:49]} 24... Rxc3 {[%clk 0:01:09.2]} 25. bxc3
{[%clk 0:00:50.1]} 25... Qxe3 {[%clk 0:01:10]} 26. Rhe1 {[%clk 0:00:50.5]} 26...
Qh3 {[%clk 0:00:55.1]} 27. d6 {[%clk 0:00:35.8]} 27... Rxc3 {[%clk 0:00:55.7]}
28. Qb2 {[%clk 0:00:26.4]} 28... Bd8 {[%clk 0:00:24.3]} 29. Nxd8 {[%clk
0:00:25.7]} 29... Bd5 {[%clk 0:00:21.4]} 30. d7 {[%clk 0:00:10]} 30... Rb3
{[%clk 0:00:22.1]} 31. Rxd5 {[%clk 0:00:11.4]} 31... Rxb2+ {[%clk 0:00:17.6]}
32. Kxb2 {[%clk 0:00:12.4]} 32... Qxh2+ {[%clk 0:00:18.4]} 33. Kb1 {[%clk
0:00:06.8]} 33... Qg3 {[%clk 0:00:11.7]} 34. Kb2 {[%clk 0:00:03.2]} 34... Qf2+
{[%clk 0:00:11.2]} 35. Kb3 {[%clk 0:00:04.8]} 35... Qg3+ {[%clk 0:00:05.9]} 36.
Kc2 {[%clk 0:00:04.5]} 36... Qf2+ {[%clk 0:00:07.1]} 37. Rd2 {[%clk 0:00:05.1]}
37... Qc5+ {[%clk 0:00:08]} 38. Kd1 {[%clk 0:00:05.9]} 38... Qh5+ {[%clk
0:00:09]} 39. Ree2 {[%clk 0:00:06.7]} 39... e3 {[%clk 0:00:09.7]} 40. Nxe6
{[%clk 0:00:07.1]} 40... Qh1+ {[%clk 0:00:10.4]} 41. Kc2 {[%clk 0:00:06.4]}
41... Qc6+ {[%clk 0:00:10.7]} 42. Kb2 {[%clk 0:00:07.2]} 42... exd2 {[%clk
0:00:09.4]} 43. d8=Q+ {[%clk 0:00:08.5]} 43... Qe8 {[%clk 0:00:10.6]} 44. Qxe8#
{[%clk 0:00:10.2]} 1-0

[Event "*** Titled Tuesday Blitz"]
[Site "Chess.com"]
[Date "2019.09.03"]
[Round "2"]
[White "Shahinyan_ChessMood"]
[Black "MalyDominator"]
[Result "1-0"]
[WhiteElo "2678"]
[BlackElo "2334"]
[TimeControl "180+2"]
[EndTime "15:23:55 PDT"]
[Termination "Shahinyan_ChessMood won by resignation"]

1. e4 {[%clk 0:02:58.9]} 1... c5 {[%clk 0:02:59.4]} 2. Nc3 {[%clk 0:02:57.6]}
2... Nc6 {[%clk 0:02:59.8]} 3. Bb5 {[%clk 0:02:58.2]} 3... Nd4 {[%clk
0:03:00.4]} 4. Nf3 {[%clk 0:02:59.3]} 4... Nxb5 {[%clk 0:03:00.6]} 5. Nxb5
{[%clk 0:03:00.1]} 5... a6 {[%clk 0:03:01.5]} 6. Nc3 {[%clk 0:03:00.7]} 6... e6
{[%clk 0:03:01.6]} 7. d4 {[%clk 0:03:01.8]} 7... cxd4 {[%clk 0:03:00.2]} 8. Qxd4
{[%clk 0:03:03.1]} 8... d6 {[%clk 0:02:55.9]} 9. Be3 {[%clk 0:03:00.8]} 9... Nf6
{[%clk 0:02:56.2]} 10. O-O-O {[%clk 0:03:01.3]} 10... Qc7 {[%clk 0:02:55.6]} 11.
e5 {[%clk 0:02:58.1]} 11... dxe5 {[%clk 0:02:49.7]} 12. Nxe5 {[%clk 0:03:00]}
12... Be7 {[%clk 0:02:39.4]} 13. Qb6 {[%clk 0:02:56.7]} 13... Qxe5 {[%clk
0:02:26.9]} 14. Rhe1 {[%clk 0:02:54.6]} 14... O-O {[%clk 0:02:11.7]} 15. f4
{[%clk 0:02:53.7]} 15... Qf5 {[%clk 0:01:33.8]} 16. h3 {[%clk 0:02:54.2]} 16...
h5 {[%clk 0:01:32.4]} 17. Kb1 {[%clk 0:02:47.2]} 17... Bd7 {[%clk 0:01:18.1]}
18. g4 {[%clk 0:02:47.5]} 18... hxg4 {[%clk 0:01:18.3]} 19. hxg4 {[%clk
0:02:49.4]} 19... Qxg4 {[%clk 0:01:19.5]} 20. Rg1 {[%clk 0:02:50.7]} 20... Qf5
{[%clk 0:01:18.5]} 21. Rg5 {[%clk 0:02:46.3]} 21... Qh7 {[%clk 0:01:12.7]} 22.
Rdg1 {[%clk 0:02:46.7]} 22... Nh5 {[%clk 0:00:48.6]} 23. Rxh5 {[%clk 0:02:23.5]}
23... Qxh5 {[%clk 0:00:48.7]} 24. Qd4 {[%clk 0:02:25.4]} 24... Qh7 {[%clk
0:00:42.3]} 25. Qxd7 {[%clk 0:02:23.8]} 25... Bb4 {[%clk 0:00:40.4]} 26. Ne2
{[%clk 0:01:49.2]} 26... Rac8 {[%clk 0:00:26.8]} 27. Qa4 {[%clk 0:01:48]} 27...
b5 {[%clk 0:00:21.3]} 28. Qb3 {[%clk 0:01:46.9]} 28... Bc5 {[%clk 0:00:21.8]}
29. a3 {[%clk 0:01:08.2]} 29... Bxe3 {[%clk 0:00:21.3]} 30. Qxe3 {[%clk
0:01:10.1]} 30... Qxc2+ {[%clk 0:00:21.4]} 31. Ka2 {[%clk 0:01:11.3]} 31... b4
{[%clk 0:00:15.5]} 32. Qe5 {[%clk 0:01:00.1]} 32... b3+ {[%clk 0:00:13.6]} 33.
Ka1 {[%clk 0:01:00.4]} 33... Qh7 {[%clk 0:00:13]} 34. Nd4 {[%clk 0:00:53.2]}
34... Rfd8 {[%clk 0:00:12.1]} 35. Nxb3 {[%clk 0:00:53.3]} 35... Rc2 {[%clk
0:00:12.1]} 36. Ka2 {[%clk 0:00:41.9]} 36... g6 {[%clk 0:00:12.2]} 37. Nd4
{[%clk 0:00:40.6]} 37... Rd2 {[%clk 0:00:08.8]} 38. Nxe6 {[%clk 0:00:41.5]}
38... fxe6 {[%clk 0:00:05.8]} 39. Qxe6+ {[%clk 0:00:42.4]} 39... Kg7 {[%clk
0:00:05.5]} 40. Qe7+ {[%clk 0:00:40.8]} 40... Kg8 {[%clk 0:00:06.7]} 41. Qe6+
{[%clk 0:00:41.8]} 41... Kh8 {[%clk 0:00:07]} 42. Rxg6 {[%clk 0:00:41.5]} 42...
R2d6 {[%clk 0:00:06.7]} 43. Qe5+ {[%clk 0:00:41.4]} 1-0

[Event "*** Titled Tuesday Blitz"]
[Site "Chess.com"]
[Date "2019.09.03"]
[Round "2"]
[White "ChristianAlm"]
[Black "wannabe2700"]
[Result "0-1"]
[WhiteElo "2318"]
[BlackElo "2552"]
[TimeControl "180+2"]
[EndTime "15:23:58 PDT"]
[Termination "wannabe2700 won by checkmate"]

1. d4 {[%clk 0:03:01.9]} 1... Nf6 {[%clk 0:03:00.8]} 2. Bg5 {[%clk 0:03:02.2]}
2... d5 {[%clk 0:03:01.7]} 3. Bxf6 {[%clk 0:03:02.2]} 3... gxf6 {[%clk
0:03:03.6]} 4. c4 {[%clk 0:03:03.9]} 4... dxc4 {[%clk 0:02:59.6]} 5. e3 {[%clk
0:03:05]} 5... c5 {[%clk 0:02:59.2]} 6. Bxc4 {[%clk 0:03:04]} 6... cxd4 {[%clk
0:02:55.2]} 7. exd4 {[%clk 0:03:00.6]} 7... Bg7 {[%clk 0:02:56]} 8. Ne2 {[%clk
0:02:58.2]} 8... O-O {[%clk 0:02:57.4]} 9. Nbc3 {[%clk 0:02:58.9]} 9... Nc6
{[%clk 0:02:52.4]} 10. O-O {[%clk 0:02:59.3]} 10... f5 {[%clk 0:02:50.5]} 11. d5
{[%clk 0:02:55.6]} 11... Ne5 {[%clk 0:02:50.5]} 12. Bb3 {[%clk 0:02:55.2]} 12...
Qd6 {[%clk 0:02:47]} 13. Nd4 {[%clk 0:02:53.7]} 13... Bd7 {[%clk 0:02:43.4]} 14.
h3 {[%clk 0:02:50.3]} 14... a6 {[%clk 0:02:40.7]} 15. Bc2 {[%clk 0:02:50.8]}
15... Qf6 {[%clk 0:02:35.5]} 16. f4 {[%clk 0:02:37.3]} 16... Nc4 {[%clk
0:02:35.8]} 17. Nce2 {[%clk 0:02:20]} 17... Ne3 {[%clk 0:02:35.2]} 18. Qd3
{[%clk 0:02:20.8]} 18... Nxf1 {[%clk 0:02:35.4]} 19. Rxf1 {[%clk 0:02:22.7]}
19... Bb5 {[%clk 0:02:22.8]} 20. Nxb5 {[%clk 0:02:12.9]} 20... axb5 {[%clk
0:02:24.7]} 21. a3 {[%clk 0:02:04.9]} 21... e6 {[%clk 0:02:19.9]} 22. d6 {[%clk
0:02:04]} 22... Qxb2 {[%clk 0:02:19.2]} 23. Rf3 {[%clk 0:01:58.8]} 23... Rfc8
{[%clk 0:02:05.6]} 24. Bb3 {[%clk 0:01:52.7]} 24... Rxa3 {[%clk 0:01:53.4]} 25.
d7 {[%clk 0:01:52.2]} 25... Rd8 {[%clk 0:01:53.2]} 26. Rg3 {[%clk 0:01:37.1]}
26... Ra1+ {[%clk 0:01:27]} 27. Kh2 {[%clk 0:01:36.9]} 27... Qb1 {[%clk
0:01:28]} 28. Rxg7+ {[%clk 0:01:37.5]} 28... Kxg7 {[%clk 0:01:27.3]} 29. Qd4+
{[%clk 0:01:31.8]} 29... Kg6 {[%clk 0:01:04.1]} 30. Qe3 {[%clk 0:01:16.1]} 30...
Qh1+ {[%clk 0:01:02.8]} 31. Kg3 {[%clk 0:01:17]} 31... Qe1+ {[%clk 0:00:59.1]}
32. Kh2 {[%clk 0:01:15.4]} 32... Rxd7 {[%clk 0:00:30.4]} 33. Bxe6 {[%clk
0:01:15.2]} 33... Qh1+ {[%clk 0:00:29.3]} 34. Kg3 {[%clk 0:01:16]} 34... Qe1+
{[%clk 0:00:23]} 35. Kh2 {[%clk 0:01:16.4]} 35... Qd2 {[%clk 0:00:09.6]} 36.
Bxf5+ {[%clk 0:00:44.9]} 36... Kg7 {[%clk 0:00:07.5]} 37. Qe5+ {[%clk
0:00:45.8]} 37... f6 {[%clk 0:00:07.8]} 38. Qxa1 {[%clk 0:00:46.3]} 38... Re7
{[%clk 0:00:08.6]} 39. Ng3 {[%clk 0:00:33.4]} 39... Qxf4 {[%clk 0:00:09.6]} 40.
Bg4 {[%clk 0:00:32.4]} 40... Re3 {[%clk 0:00:09.5]} 41. Bf3 {[%clk 0:00:32.4]}
41... h5 {[%clk 0:00:08.2]} 42. Qd1 {[%clk 0:00:17]} 42... h4 {[%clk 0:00:08.9]}
43. Qd7+ {[%clk 0:00:17.5]} 43... Kh6 {[%clk 0:00:10.4]} 44. Qf7 {[%clk
0:00:04.1]} 44... Qxg3+ {[%clk 0:00:10.8]} 45. Kg1 {[%clk 0:00:05.1]} 45... Re1#
{[%clk 0:00:12.7]} 0-1

[Event "*** Titled Tuesday Blitz"]
[Site "Chess.com"]
[Date "2019.09.03"]
[Round "2"]
[White "mitrabhaa"]
[Black "GM_dmitrij"]
[Result "0-1"]
[WhiteElo "2646"]
[BlackElo "2963"]
[TimeControl "180+2"]
[EndTime "15:24:06 PDT"]
[Termination "GM_dmitrij won by checkmate"]

1. Nf3 {[%clk 0:03:01.9]} 1... d5 {[%clk 0:02:59.5]} 2. c4 {[%clk 0:03:01.9]}
2... d4 {[%clk 0:03:00.4]} 3. b4 {[%clk 0:03:01.5]} 3... g5 {[%clk 0:03:01.3]}
4. Bb2 {[%clk 0:02:56.3]} 4... Bg7 {[%clk 0:02:59.8]} 5. h3 {[%clk 0:02:50.2]}
5... e5 {[%clk 0:02:58.7]} 6. d3 {[%clk 0:02:50.8]} 6... h6 {[%clk 0:03:00.1]}
7. g3 {[%clk 0:02:51.3]} 7... Ne7 {[%clk 0:02:58.7]} 8. Bg2 {[%clk 0:02:52.4]}
8... O-O {[%clk 0:02:59.8]} 9. Nbd2 {[%clk 0:02:53]} 9... Ng6 {[%clk 0:03:00]}
10. O-O {[%clk 0:02:51]} 10... f5 {[%clk 0:02:54.9]} 11. a4 {[%clk 0:02:52.5]}
11... Nd7 {[%clk 0:02:47.2]} 12. a5 {[%clk 0:02:48.4]} 12... Nf6 {[%clk
0:02:31.3]} 13. Ne1 {[%clk 0:02:42.6]} 13... a6 {[%clk 0:02:23.2]} 14. b5 {[%clk
0:02:40.2]} 14... h5 {[%clk 0:02:23.7]} 15. Qb3 {[%clk 0:02:31.4]} 15... Kh8
{[%clk 0:01:47.9]} 16. bxa6 {[%clk 0:02:29.1]} 16... Rxa6 {[%clk 0:01:49.8]} 17.
Bxb7 {[%clk 0:02:18.8]} 17... Bxb7 {[%clk 0:01:46.8]} 18. Qxb7 {[%clk
0:02:19.6]} 18... Re6 {[%clk 0:01:48.7]} 19. Ba3 {[%clk 0:02:13.7]} 19... Rg8
{[%clk 0:01:41]} 20. Nc2 {[%clk 0:02:08.2]} 20... h4 {[%clk 0:01:39.4]} 21. Rfb1
{[%clk 0:02:02.8]} 21... g4 {[%clk 0:01:32]} 22. a6 {[%clk 0:02:02.2]} 22...
hxg3 {[%clk 0:01:18.8]} 23. fxg3 {[%clk 0:02:02.2]} 23... gxh3 {[%clk
0:01:06.8]} 24. a7 {[%clk 0:01:59.8]} 24... Bh6 {[%clk 0:01:05.7]} 25. Qb8
{[%clk 0:01:48.5]} 25... h2+ {[%clk 0:00:43.9]} 26. Kh1 {[%clk 0:01:45.2]} 26...
Qd7 {[%clk 0:00:35.8]} 27. a8=Q {[%clk 0:01:40]} 27... Bxd2 {[%clk 0:00:34]} 28.
Bc5 {[%clk 0:01:26.4]} 28... Ree8 {[%clk 0:00:28.3]} 29. Ra6 {[%clk 0:01:17.1]}
29... Kg7 {[%clk 0:00:13.5]} 30. Qaa7 {[%clk 0:00:43.6]} 30... Rxb8 {[%clk
0:00:13.7]} 31. Rxb8 {[%clk 0:00:44.2]} 31... Rxb8 {[%clk 0:00:15.6]} 32. Qxb8
{[%clk 0:00:45.2]} 32... Nh5 {[%clk 0:00:14.6]} 33. Qb7 {[%clk 0:00:40.2]} 33...
Nxg3+ {[%clk 0:00:14.2]} 34. Kxh2 {[%clk 0:00:41.1]} 34... Bf4 {[%clk
0:00:14.5]} 35. Rc6 {[%clk 0:00:39]} 35... Nxe2+ {[%clk 0:00:11.4]} 36. Kg2
{[%clk 0:00:38.4]} 36... e4 {[%clk 0:00:13.3]} 37. Bb6 {[%clk 0:00:32.2]} 37...
exd3 {[%clk 0:00:12.7]} 38. Bxc7 {[%clk 0:00:20.4]} 38... dxc2 {[%clk
0:00:13.9]} 39. Be5+ {[%clk 0:00:16.2]} 39... Nxe5 {[%clk 0:00:14]} 40. Rc7
{[%clk 0:00:17.5]} 40... c1=Q {[%clk 0:00:11.3]} 41. Rxd7+ {[%clk 0:00:18.8]}
41... Nxd7 {[%clk 0:00:13.2]} 42. Qxd7+ {[%clk 0:00:20.4]} 42... Kf6 {[%clk
0:00:12.8]} 43. Qd8+ {[%clk 0:00:21.2]} 43... Kg6 {[%clk 0:00:13.4]} 44. Qg8+
{[%clk 0:00:21.7]} 44... Kh5 {[%clk 0:00:14]} 45. Qf7+ {[%clk 0:00:22]} 45...
Kg4 {[%clk 0:00:15.5]} 46. Qd5 {[%clk 0:00:20]} 46... Qg1# {[%clk 0:00:15.2]}
0-1